[Event "*** Titled Tuesday Blitz"]
[Site "Chess.com"]
[Date "2020.10.20"]
[Round "4"]
[White "Andrii_Prydun"]
[Black "JonahWillow"]
[Result "0-1"]
[WhiteElo "2386"]
[BlackElo "2638"]
[TimeControl "180+1"]
[EndTime "10:41:41 PDT"]
[Termination "JonahWillow won on time"]

1. d4 {[%clk 0:03:00.9]} 1... Nf6 {[%clk 0:02:57.2]} 2. Nf3 {[%clk 0:03:01.2]}
2... e6 {[%clk 0:02:56.2]} 3. e3 {[%clk 0:02:55.9]} 3... c5 {[%clk 0:02:56.1]}
4. Be2 {[%clk 0:02:55.5]} 4... cxd4 {[%clk 0:02:55.6]} 5. exd4 {[%clk
0:02:54.6]} 5... b6 {[%clk 0:02:56.5]} 6. O-O {[%clk 0:02:53.5]} 6... Bb7 {[%clk
0:02:55.9]} 7. a4 {[%clk 0:02:36.8]} 7... a6 {[%clk 0:02:55.6]} 8. Nbd2 {[%clk
0:02:28.8]} 8... Be7 {[%clk 0:02:53.2]} 9. Nc4 {[%clk 0:02:25]} 9... O-O {[%clk
0:02:50.6]} 10. a5 {[%clk 0:02:25]} 10... b5 {[%clk 0:02:39.7]} 11. Nb6 {[%clk
0:02:25.1]} 11... Ra7 {[%clk 0:02:39.4]} 12. b3 {[%clk 0:02:24.3]} 12... d5
{[%clk 0:02:38.2]} 13. c3 {[%clk 0:02:20.7]} 13... Nbd7 {[%clk 0:02:36.4]} 14.
Nxd7 {[%clk 0:02:16.4]} 14... Qxd7 {[%clk 0:02:37.3]} 15. b4 {[%clk 0:02:14.3]}
15... Rc8 {[%clk 0:02:36.8]} 16. Bd2 {[%clk 0:02:14.1]} 16... Ne4 {[%clk
0:02:35.8]} 17. Rc1 {[%clk 0:02:13.4]} 17... Bd6 {[%clk 0:02:29]} 18. Be1 {[%clk
0:02:09]} 18... Bc6 {[%clk 0:02:26.7]} 19. Qb3 {[%clk 0:02:03.2]} 19... Rac7
{[%clk 0:02:26.4]} 20. Nd2 {[%clk 0:02:00.4]} 20... Bf4 {[%clk 0:02:06.9]} 21.
Rc2 {[%clk 0:01:52.4]} 21... Nd6 {[%clk 0:01:51.9]} 22. g3 {[%clk 0:01:44.7]}
22... Bh6 {[%clk 0:01:51.3]} 23. f4 {[%clk 0:01:40.9]} 23... Bb7 {[%clk
0:01:49.4]} 24. Nf3 {[%clk 0:01:40]} 24... Ne4 {[%clk 0:01:47.9]} 25. Bd3 {[%clk
0:01:35.2]} 25... f6 {[%clk 0:01:47.8]} 26. Nh4 {[%clk 0:01:11.5]} 26... g6
{[%clk 0:01:41.6]} 27. Ng2 {[%clk 0:01:10]} 27... Rc6 {[%clk 0:01:31.9]} 28. Ne3
{[%clk 0:01:07.6]} 28... Bf8 {[%clk 0:01:27.4]} 29. Ng4 {[%clk 0:00:53.7]} 29...
Be7 {[%clk 0:01:24.4]} 30. Bxe4 {[%clk 0:00:46.8]} 30... dxe4 {[%clk 0:01:23.4]}
31. f5 {[%clk 0:00:47.4]} 31... gxf5 {[%clk 0:00:48.3]} 32. Rxf5 {[%clk
0:00:48.3]} 32... Kg7 {[%clk 0:00:46.3]} 33. Rh5 {[%clk 0:00:44]} 33... Rc4
{[%clk 0:00:29]} 34. Qb1 {[%clk 0:00:40.8]} 34... e5 {[%clk 0:00:26.8]} 35. h3
{[%clk 0:00:32.1]} 35... exd4 {[%clk 0:00:25]} 36. Qc1 {[%clk 0:00:29.9]} 36...
e3 {[%clk 0:00:25]} 37. Rh2 {[%clk 0:00:07.8]} 37... Qc6 {[%clk 0:00:19.1]} 38.
Qd1 {[%clk 0:00:05.7]} 38... Qe4 {[%clk 0:00:14.8]} 39. Qe2 {[%clk 0:00:02.2]}
39... Rxc3 {[%clk 0:00:11]} 40. Qf1 {[%clk 0:00:01.9]} 40... Rc1 {[%clk
0:00:08.5]} 0-1

[Event "*** Titled Tuesday Blitz"]
[Site "Chess.com"]
[Date "2020.10.20"]
[Round "4"]
[White "TC2304"]
[Black "SamuelGhimpu2003"]
[Result "0-1"]
[WhiteElo "2269"]
[BlackElo "2581"]
[TimeControl "180+1"]
[EndTime "10:41:41 PDT"]
[Termination "SamuelGhimpu2003 won by resignation"]

1. d4 {[%clk 0:03:00.9]} 1... Nf6 {[%clk 0:02:59.6]} 2. Bg5 {[%clk 0:03:01.4]}
2... e6 {[%clk 0:02:58.1]} 3. e4 {[%clk 0:03:01.4]} 3... h6 {[%clk 0:02:57.4]}
4. Bxf6 {[%clk 0:03:01.4]} 4... Qxf6 {[%clk 0:02:58.3]} 5. c3 {[%clk 0:03:02]}
5... c5 {[%clk 0:02:58.4]} 6. Nf3 {[%clk 0:03:01.9]} 6... b6 {[%clk 0:02:50.5]}
7. d5 {[%clk 0:02:52.1]} 7... exd5 {[%clk 0:02:39.8]} 8. exd5 {[%clk 0:02:37.7]}
8... Bd6 {[%clk 0:02:35.1]} 9. Bc4 {[%clk 0:02:20.1]} 9... O-O {[%clk
0:02:33.5]} 10. O-O {[%clk 0:02:19.9]} 10... Re8 {[%clk 0:02:09.8]} 11. Nbd2
{[%clk 0:02:15.8]} 11... Bf8 {[%clk 0:02:07.2]} 12. Re1 {[%clk 0:02:10]} 12...
Rxe1+ {[%clk 0:02:07.4]} 13. Qxe1 {[%clk 0:02:10.9]} 13... d6 {[%clk 0:02:08]}
14. Qe8 {[%clk 0:01:51.7]} 14... Bd7 {[%clk 0:01:46.3]} 15. Qe3 {[%clk
0:01:42.2]} 15... Bf5 {[%clk 0:01:43.3]} 16. Ne4 {[%clk 0:01:29.7]} 16... Qd8
{[%clk 0:01:37.3]} 17. Re1 {[%clk 0:01:25]} 17... Bh7 {[%clk 0:00:59.8]} 18. Bb5
{[%clk 0:01:17.1]} 18... Nd7 {[%clk 0:00:54.8]} 19. Qf4 {[%clk 0:01:15.1]} 19...
Bxe4 {[%clk 0:00:49.9]} 20. Qxe4 {[%clk 0:01:14.6]} 20... Nf6 {[%clk 0:00:50.2]}
21. Qd3 {[%clk 0:01:07.8]} 21... Qc7 {[%clk 0:00:31.4]} 22. h3 {[%clk
0:00:56.9]} 22... a6 {[%clk 0:00:28.1]} 23. Bc6 {[%clk 0:00:55.9]} 23... Ra7
{[%clk 0:00:26.8]} 24. Nh4 {[%clk 0:00:51.6]} 24... b5 {[%clk 0:00:23.9]} 25.
Nf5 {[%clk 0:00:51.1]} 25... Qa5 {[%clk 0:00:23.5]} 26. Qg3 {[%clk 0:00:49.3]}
26... Qxa2 {[%clk 0:00:17.9]} 27. Nxh6+ {[%clk 0:00:46.6]} 27... Kh7 {[%clk
0:00:18.5]} 28. Nxf7 {[%clk 0:00:46.6]} 28... Rxf7 {[%clk 0:00:17.7]} 29. Re6
{[%clk 0:00:24.3]} 29... Qxb2 {[%clk 0:00:16.2]} 30. Qg5 {[%clk 0:00:12.6]}
30... Qxc3 {[%clk 0:00:14.3]} 31. Kh2 {[%clk 0:00:12.5]} 31... Qd4 {[%clk
0:00:12.7]} 32. Qg3 {[%clk 0:00:08.3]} 32... c4 {[%clk 0:00:11.4]} 33. Be8
{[%clk 0:00:04.3]} 33... Nxe8 {[%clk 0:00:10.3]} 34. Rxe8 {[%clk 0:00:05.2]}
34... c3 {[%clk 0:00:09.2]} 35. Rc8 {[%clk 0:00:03.8]} 35... b4 {[%clk
0:00:09.3]} 36. f4 {[%clk 0:00:03.5]} 36... Qxf4 {[%clk 0:00:09.3]} 37. Qxf4
{[%clk 0:00:01.1]} 37... Rxf4 {[%clk 0:00:10.2]} 38. Rc7 {[%clk 0:00:01.4]}
38... b3 {[%clk 0:00:08.8]} 39. Kg3 {[%clk 0:00:02.1]} 39... Rb4 {[%clk
0:00:05.4]} 40. Rxc3 {[%clk 0:00:03]} 40... b2 {[%clk 0:00:05.9]} 41. Rc4 {[%clk
0:00:02.5]} 41... Rxc4 {[%clk 0:00:06.1]} 0-1

[Event "*** Titled Tuesday Blitz"]
[Site "Chess.com"]
[Date "2020.10.20"]
[Round "4"]
[White "Susal_De_Silva"]
[Black "Fins0905"]
[Result "0-1"]
[WhiteElo "2420"]
[BlackElo "2634"]
[TimeControl "180+1"]
[EndTime "10:41:42 PDT"]
[Termination "Fins0905 won by resignation"]

1. e4 {[%clk 0:03:00.9]} 1... d5 {[%clk 0:02:58.8]} 2. exd5 {[%clk 0:03:00.9]}
2... Qxd5 {[%clk 0:02:58.3]} 3. Nc3 {[%clk 0:03:01]} 3... Qa5 {[%clk 0:02:58.1]}
4. Bc4 {[%clk 0:02:59.2]} 4... Nf6 {[%clk 0:02:57.6]} 5. Nf3 {[%clk 0:02:59.1]}
5... Bf5 {[%clk 0:02:55.2]} 6. d4 {[%clk 0:02:58.7]} 6... e6 {[%clk 0:02:54.7]}
7. Bd2 {[%clk 0:02:57.9]} 7... Bb4 {[%clk 0:02:52.8]} 8. O-O {[%clk 0:02:55.7]}
8... Nc6 {[%clk 0:02:51.3]} 9. a3 {[%clk 0:02:54.2]} 9... Bxc3 {[%clk
0:02:51.1]} 10. Bxc3 {[%clk 0:02:55.1]} 10... Qb6 {[%clk 0:02:51.5]} 11. d5
{[%clk 0:02:48.9]} 11... O-O-O {[%clk 0:02:46.1]} 12. Bxf6 {[%clk 0:02:38]}
12... gxf6 {[%clk 0:02:44.3]} 13. Qd2 {[%clk 0:02:30.7]} 13... Ne7 {[%clk
0:02:18.9]} 14. Qh6 {[%clk 0:02:14.3]} 14... Nxd5 {[%clk 0:02:05.1]} 15. Bxd5
{[%clk 0:02:13.8]} 15... exd5 {[%clk 0:02:04.4]} 16. Qf4 {[%clk 0:02:00.6]}
16... Bxc2 {[%clk 0:01:50.1]} 17. Rac1 {[%clk 0:01:51]} 17... Be4 {[%clk
0:01:41.1]} 18. Nd2 {[%clk 0:01:47.7]} 18... Bd3 {[%clk 0:01:18.6]} 19. Rfe1
{[%clk 0:01:47]} 19... Rhe8 {[%clk 0:01:13.5]} 20. Rxe8 {[%clk 0:01:38.6]} 20...
Rxe8 {[%clk 0:01:14.4]} 21. Nb3 {[%clk 0:01:28.9]} 21... Bc4 {[%clk 0:00:55.7]}
22. Nd2 {[%clk 0:01:28.6]} 22... Bd3 {[%clk 0:00:41.8]} 23. Nb3 {[%clk
0:01:23.6]} 23... Bg6 {[%clk 0:00:18.8]} 24. Nc5 {[%clk 0:01:06]} 24... Qxc5
{[%clk 0:00:14.8]} 25. Qg4+ {[%clk 0:00:55.1]} 25... f5 {[%clk 0:00:09.8]} 26.
Qd1 {[%clk 0:00:54.1]} 26... Qd6 {[%clk 0:00:08.6]} 27. Qa4 {[%clk 0:00:54.7]}
27... Qe6 {[%clk 0:00:06.7]} 28. h3 {[%clk 0:00:51.9]} 28... Kb8 {[%clk
0:00:07.2]} 29. Qa5 {[%clk 0:00:51.4]} 29... c6 {[%clk 0:00:07.3]} 30. Qc3
{[%clk 0:00:50.7]} 30... Qd6 {[%clk 0:00:07.6]} 31. Qg7 {[%clk 0:00:48]} 31...
Qe5 {[%clk 0:00:07.4]} 32. Qh6 {[%clk 0:00:47.3]} 32... d4 {[%clk 0:00:08]} 33.
b4 {[%clk 0:00:42.2]} 33... f4 {[%clk 0:00:08.3]} 34. a4 {[%clk 0:00:40.3]}
34... d3 {[%clk 0:00:08.7]} 35. b5 {[%clk 0:00:40]} 35... d2 {[%clk 0:00:09]}
36. Rd1 {[%clk 0:00:39.7]} 36... Qe1+ {[%clk 0:00:08.4]} 37. Kh2 {[%clk
0:00:40.6]} 37... Qxd1 {[%clk 0:00:08.4]} 38. Qxf4+ {[%clk 0:00:41.5]} 38... Ka8
{[%clk 0:00:09]} 39. bxc6 {[%clk 0:00:41.5]} 39... Qe1 {[%clk 0:00:07.4]} 40.
cxb7+ {[%clk 0:00:31.3]} 40... Kxb7 {[%clk 0:00:08.3]} 41. Qb4+ {[%clk
0:00:30.3]} 41... Kc6 {[%clk 0:00:08.2]} 42. Qb5+ {[%clk 0:00:29.9]} 42... Kd6
{[%clk 0:00:08.5]} 43. Qa6+ {[%clk 0:00:28.3]} 43... Ke7 {[%clk 0:00:07.9]} 44.
Qb5 {[%clk 0:00:27.3]} 44... Kf8 {[%clk 0:00:07.9]} 45. Qc5+ {[%clk 0:00:26.9]}
45... Kg8 {[%clk 0:00:07.7]} 46. Qc6 {[%clk 0:00:27.8]} 46... Qe5+ {[%clk
0:00:07.5]} 47. g3 {[%clk 0:00:25.6]} 47... d1=Q {[%clk 0:00:07.2]} 48. h4
{[%clk 0:00:25.1]} 48... Qe4 {[%clk 0:00:07.4]} 49. Qxe4 {[%clk 0:00:24.3]}
49... Bxe4 {[%clk 0:00:07.1]} 50. Kh3 {[%clk 0:00:25.2]} 50... Qf3 {[%clk
0:00:06.4]} 0-1

[Event "*** Titled Tuesday Blitz"]
[Site "Chess.com"]
[Date "2020.10.20"]
[Round "4"]
[White "ChessQueen"]
[Black "AwareIdea"]
[Result "1-0"]
[WhiteElo "2705"]
[BlackElo "2471"]
[TimeControl "180+1"]
[EndTime "10:41:45 PDT"]
[Termination "ChessQueen won by resignation"]

1. e4 {[%clk 0:03:00.9]} 1... e5 {[%clk 0:03:00]} 2. Nf3 {[%clk 0:03:00.6]} 2...
Nc6 {[%clk 0:02:59.8]} 3. Bc4 {[%clk 0:03:00.8]} 3... Bc5 {[%clk 0:02:59.3]} 4.
b4 {[%clk 0:03:00.7]} 4... Bxb4 {[%clk 0:02:57.5]} 5. c3 {[%clk 0:03:01.1]} 5...
Ba5 {[%clk 0:02:57.5]} 6. d4 {[%clk 0:03:01.3]} 6... exd4 {[%clk 0:02:58.4]} 7.
O-O {[%clk 0:03:01.5]} 7... Nge7 {[%clk 0:02:58.4]} 8. Qb3 {[%clk 0:02:55.3]}
8... O-O {[%clk 0:02:52]} 9. cxd4 {[%clk 0:02:55.3]} 9... Bb6 {[%clk 0:02:48.4]}
10. Ng5 {[%clk 0:02:51.3]} 10... d5 {[%clk 0:02:43.3]} 11. exd5 {[%clk
0:02:42.9]} 11... Nxd4 {[%clk 0:02:38]} 12. Qd1 {[%clk 0:02:18]} 12... Nxd5
{[%clk 0:02:25.6]} 13. Nc3 {[%clk 0:01:49.7]} 13... Nxc3 {[%clk 0:02:10.9]} 14.
Qh5 {[%clk 0:01:49.5]} 14... Bf5 {[%clk 0:01:54]} 15. Nxf7 {[%clk 0:01:49.6]}
15... Rxf7 {[%clk 0:01:46.4]} 16. Bxf7+ {[%clk 0:01:43.5]} 16... Kh8 {[%clk
0:01:36.9]} 17. Bg5 {[%clk 0:01:43.4]} 17... Qf8 {[%clk 0:01:29.1]} 18. Rfe1
{[%clk 0:01:41.5]} 18... Nce2+ {[%clk 0:01:09.4]} 19. Kh1 {[%clk 0:01:38.5]}
19... Qd6 {[%clk 0:00:52.2]} 20. Rxe2 {[%clk 0:01:27.7]} 20... Nxe2 {[%clk
0:00:49.9]} 21. Qxe2 {[%clk 0:01:27.6]} 21... h6 {[%clk 0:00:42.1]} 22. Be7
{[%clk 0:01:17.9]} 22... Qd3 {[%clk 0:00:40.3]} 23. Qxd3 {[%clk 0:01:07.4]}
23... Bxd3 {[%clk 0:00:41.2]} 24. Rd1 {[%clk 0:01:07.2]} 24... Bb5 {[%clk
0:00:38.6]} 25. f4 {[%clk 0:01:04.4]} 25... Ba4 {[%clk 0:00:32.3]} 26. Rd3
{[%clk 0:00:57.2]} 26... Be8 {[%clk 0:00:31.5]} 27. Be6 {[%clk 0:00:55.4]} 27...
Bc6 {[%clk 0:00:30.8]} 28. f5 {[%clk 0:00:54.3]} 28... Re8 {[%clk 0:00:30]} 29.
f6 {[%clk 0:00:52.1]} 29... gxf6 {[%clk 0:00:28.4]} 30. Bxf6+ {[%clk 0:00:52]}
30... Kh7 {[%clk 0:00:28.6]} 31. Bf5+ {[%clk 0:00:52.4]} 31... Kg8 {[%clk
0:00:28.2]} 32. Rg3+ {[%clk 0:00:51.1]} 32... Kf7 {[%clk 0:00:28.6]} 33. Bc3
{[%clk 0:00:45.7]} 33... Re3 {[%clk 0:00:26]} 34. Rxe3 {[%clk 0:00:31.6]} 34...
Bxe3 {[%clk 0:00:26.9]} 35. h4 {[%clk 0:00:32]} 35... Bd5 {[%clk 0:00:23.8]} 36.
a4 {[%clk 0:00:31]} 36... b6 {[%clk 0:00:22.6]} 37. Kh2 {[%clk 0:00:28.7]} 37...
Bf4+ {[%clk 0:00:22]} 38. g3 {[%clk 0:00:28.7]} 38... Be3 {[%clk 0:00:21.9]} 39.
Kh3 {[%clk 0:00:29.1]} 39... Bf3 {[%clk 0:00:22.2]} 40. Bd3 {[%clk 0:00:26]}
40... c5 {[%clk 0:00:21.9]} 41. Bc4+ {[%clk 0:00:26.3]} 41... Kg6 {[%clk
0:00:20.9]} 42. g4 {[%clk 0:00:26.9]} 42... h5 {[%clk 0:00:20.9]} 43. g5 {[%clk
0:00:25.9]} 43... Kf5 {[%clk 0:00:19.7]} 44. Kg3 {[%clk 0:00:26.1]} 44... Bg4
{[%clk 0:00:18.9]} 45. Bd3+ {[%clk 0:00:25.8]} 45... Ke6 {[%clk 0:00:19.3]} 46.
g6 {[%clk 0:00:26.4]} 46... Ke7 {[%clk 0:00:14.9]} 47. g7 {[%clk 0:00:25.3]}
47... Kf7 {[%clk 0:00:13.1]} 48. Bc4+ {[%clk 0:00:25]} 48... Ke7 {[%clk
0:00:10.2]} 49. g8=Q {[%clk 0:00:25]} 1-0

[Event "*** Titled Tuesday Blitz"]
[Site "Chess.com"]
[Date "2020.10.20"]
[Round "4"]
[White "MateusViageiro"]
[Black "chessplayer9919"]
[Result "0-1"]
[WhiteElo "2358"]
[BlackElo "2616"]
[TimeControl "180+1"]
[EndTime "10:41:47 PDT"]
[Termination "chessplayer9919 won by checkmate"]

1. e4 {[%clk 0:02:59.5]} 1... e5 {[%clk 0:02:57.8]} 2. Nf3 {[%clk 0:02:59.2]}
2... Nc6 {[%clk 0:02:57.5]} 3. Bb5 {[%clk 0:02:57.3]} 3... Nf6 {[%clk 0:02:57]}
4. O-O {[%clk 0:02:53.8]} 4... Nxe4 {[%clk 0:02:56.3]} 5. d4 {[%clk 0:02:53.3]}
5... Nd6 {[%clk 0:02:55.4]} 6. Bxc6 {[%clk 0:02:53.3]} 6... dxc6 {[%clk
0:02:56.3]} 7. dxe5 {[%clk 0:02:53.9]} 7... Nf5 {[%clk 0:02:57]} 8. Qxd8+ {[%clk
0:02:54.2]} 8... Kxd8 {[%clk 0:02:57.9]} 9. Rd1+ {[%clk 0:02:53]} 9... Ke8
{[%clk 0:02:57.8]} 10. Nc3 {[%clk 0:02:52.9]} 10... Be7 {[%clk 0:02:53.8]} 11.
Ne4 {[%clk 0:02:51]} 11... h5 {[%clk 0:02:51.4]} 12. h3 {[%clk 0:02:49.8]} 12...
Be6 {[%clk 0:02:49.2]} 13. Bg5 {[%clk 0:02:34.8]} 13... Bd5 {[%clk 0:02:34.8]}
14. Nfd2 {[%clk 0:02:32.5]} 14... Nd4 {[%clk 0:02:07.4]} 15. c3 {[%clk
0:02:19.4]} 15... Ne6 {[%clk 0:01:25.9]} 16. Be3 {[%clk 0:02:15.1]} 16... c5
{[%clk 0:01:12.2]} 17. f4 {[%clk 0:02:08.6]} 17... g6 {[%clk 0:00:59.9]} 18. Kf2
{[%clk 0:01:59.6]} 18... h4 {[%clk 0:00:57.2]} 19. c4 {[%clk 0:01:57.3]} 19...
Bc6 {[%clk 0:00:54.8]} 20. Nc3 {[%clk 0:01:56.9]} 20... Rd8 {[%clk 0:00:45.6]}
21. Nde4 {[%clk 0:01:53.9]} 21... Nd4 {[%clk 0:00:40.4]} 22. Rd2 {[%clk
0:01:48.9]} 22... b6 {[%clk 0:00:21]} 23. Rad1 {[%clk 0:01:44.9]} 23... Nf5
{[%clk 0:00:20.8]} 24. Nd5 {[%clk 0:01:43.6]} 24... Rc8 {[%clk 0:00:14.8]} 25.
a3 {[%clk 0:01:32.7]} 25... a5 {[%clk 0:00:08.8]} 26. Nef6+ {[%clk 0:01:31.4]}
26... Bxf6 {[%clk 0:00:07.9]} 27. Nxf6+ {[%clk 0:01:32]} 27... Ke7 {[%clk
0:00:08.1]} 28. Nd5+ {[%clk 0:01:31.3]} 28... Ke6 {[%clk 0:00:08.2]} 29. Nf6
{[%clk 0:01:29.4]} 29... Bxg2 {[%clk 0:00:04.8]} 30. Bxc5 {[%clk 0:01:18.8]}
30... bxc5 {[%clk 0:00:04.2]} 31. Kxg2 {[%clk 0:01:07.7]} 31... Ne3+ {[%clk
0:00:04.4]} 32. Kf3 {[%clk 0:01:07.9]} 32... Nxd1 {[%clk 0:00:05.3]} 33. Rxd1
{[%clk 0:01:06.2]} 33... Rhd8 {[%clk 0:00:04.9]} 34. Rh1 {[%clk 0:01:04.1]}
34... Rb8 {[%clk 0:00:05]} 35. Rh2 {[%clk 0:01:02.7]} 35... Rb3+ {[%clk
0:00:04.2]} 36. Kg4 {[%clk 0:01:01.6]} 36... Rd4 {[%clk 0:00:04.9]} 37. Rf2
{[%clk 0:00:56.8]} 37... Rxc4 {[%clk 0:00:04.4]} 38. Kxh4 {[%clk 0:00:54.5]}
38... Kf5 {[%clk 0:00:04.5]} 39. Ng4 {[%clk 0:00:45.1]} 39... Rxf4 {[%clk
0:00:04.1]} 40. Rh2 {[%clk 0:00:39.7]} 40... g5+ {[%clk 0:00:04.2]} 41. Kh5
{[%clk 0:00:38.4]} 41... Rff3 {[%clk 0:00:03.9]} 42. Nh6+ {[%clk 0:00:30.8]}
42... Kxe5 {[%clk 0:00:04.3]} 43. Re2+ {[%clk 0:00:30.2]} 43... Rbe3 {[%clk
0:00:03.5]} 44. Ng4+ {[%clk 0:00:28.3]} 44... Kf4 {[%clk 0:00:02.1]} 45. Nxe3
{[%clk 0:00:27.1]} 45... Rxh3# {[%clk 0:00:01.9]} 0-1

[Event "*** Titled Tuesday Blitz"]
[Site "Chess.com"]
[Date "2020.10.20"]
[Round "4"]
[White "Skatchkov_V"]
[Black "profofchess"]
[Result "0-1"]
[WhiteElo "2524"]
[BlackElo "2360"]
[TimeControl "180+1"]
[EndTime "10:41:48 PDT"]
[Termination "profofchess won by checkmate"]

1. d4 {[%clk 0:03:00.7]} 1... Nf6 {[%clk 0:02:59.9]} 2. c4 {[%clk 0:03:01]} 2...
e6 {[%clk 0:03:00.3]} 3. Nf3 {[%clk 0:03:01.2]} 3... c5 {[%clk 0:03:00.2]} 4. d5
{[%clk 0:03:01.4]} 4... exd5 {[%clk 0:03:00.7]} 5. cxd5 {[%clk 0:03:02.3]} 5...
d6 {[%clk 0:03:01.6]} 6. Nc3 {[%clk 0:03:02.7]} 6... g6 {[%clk 0:03:02.3]} 7.
Bf4 {[%clk 0:03:03.4]} 7... a6 {[%clk 0:03:02.3]} 8. a4 {[%clk 0:03:03.1]} 8...
Bg7 {[%clk 0:03:01.4]} 9. e3 {[%clk 0:03:03.6]} 9... O-O {[%clk 0:03:01.4]} 10.
h3 {[%clk 0:03:04.4]} 10... Qe7 {[%clk 0:02:55.8]} 11. Nd2 {[%clk 0:03:04]}
11... Nbd7 {[%clk 0:02:50.8]} 12. Nc4 {[%clk 0:03:04.3]} 12... Ne8 {[%clk
0:02:50]} 13. Be2 {[%clk 0:03:02.8]} 13... Rb8 {[%clk 0:02:39.7]} 14. a5 {[%clk
0:02:49.7]} 14... f5 {[%clk 0:02:15.7]} 15. O-O {[%clk 0:02:49]} 15... g5 {[%clk
0:02:12.6]} 16. Bh2 {[%clk 0:02:48.1]} 16... f4 {[%clk 0:02:11.3]} 17. exf4
{[%clk 0:02:47]} 17... gxf4 {[%clk 0:02:12.2]} 18. Qd2 {[%clk 0:02:29]} 18...
Ne5 {[%clk 0:01:44.2]} 19. Bxf4 {[%clk 0:02:24.2]} 19... Nxc4 {[%clk 0:01:44.3]}
20. Bxc4 {[%clk 0:02:25.1]} 20... Qh4 {[%clk 0:01:44.5]} 21. g3 {[%clk
0:02:16.7]} 21... Qxh3 {[%clk 0:01:43.8]} 22. Rae1 {[%clk 0:02:15.3]} 22... Bg4
{[%clk 0:01:35.2]} 23. f3 {[%clk 0:02:13.2]} 23... Bd4+ {[%clk 0:01:24.1]} 24.
Re3 {[%clk 0:01:51.2]} 24... Rxf4 {[%clk 0:01:05.5]} 25. gxf4 {[%clk 0:01:51.3]}
25... Qg3+ {[%clk 0:00:59.6]} 26. Kh1 {[%clk 0:01:50.5]} 26... Qh3+ {[%clk
0:00:51.3]} 27. Kg1 {[%clk 0:01:48.6]} 27... Bxf3 {[%clk 0:00:45.9]} 28. Kf2
{[%clk 0:01:47.3]} 28... Nf6 {[%clk 0:00:29.7]} 29. Rg1+ {[%clk 0:01:46.9]}
29... Kh8 {[%clk 0:00:13.5]} 30. Rg3 {[%clk 0:01:39.5]} 30... Qh2+ {[%clk
0:00:13.5]} 31. Kxf3 {[%clk 0:01:38.5]} 31... Qxd2 {[%clk 0:00:12.6]} 32. Re2
{[%clk 0:01:39.4]} 32... Qc1 {[%clk 0:00:09.4]} 33. Kg2 {[%clk 0:01:33.6]} 33...
Rg8 {[%clk 0:00:08.4]} 34. Bd3 {[%clk 0:01:32.3]} 34... Qxf4 {[%clk 0:00:06.1]}
35. Rxg8+ {[%clk 0:01:30.1]} 35... Kxg8 {[%clk 0:00:06.4]} 36. Kh1 {[%clk
0:01:29.7]} 36... Qh4+ {[%clk 0:00:06]} 37. Kg2 {[%clk 0:01:29.4]} 37... Qg4+
{[%clk 0:00:05.8]} 38. Kh2 {[%clk 0:01:29]} 38... Qh5+ {[%clk 0:00:05.5]} 39.
Kg3 {[%clk 0:01:28.6]} 39... Qg5+ {[%clk 0:00:04.6]} 40. Kf3 {[%clk 0:01:29.1]}
40... Ng4 {[%clk 0:00:04.6]} 41. Rg2 {[%clk 0:01:28.7]} 41... h5 {[%clk
0:00:04.6]} 42. Nd1 {[%clk 0:01:28.2]} 42... Qf6+ {[%clk 0:00:04]} 43. Ke2
{[%clk 0:01:27.9]} 43... Qe5+ {[%clk 0:00:04.4]} 44. Kd2 {[%clk 0:01:27.7]}
44... Kf8 {[%clk 0:00:04.8]} 45. Kc2 {[%clk 0:01:27.3]} 45... Qf4 {[%clk
0:00:04.3]} 46. Kb3 {[%clk 0:01:26.1]} 46... h4 {[%clk 0:00:04.5]} 47. Be2
{[%clk 0:01:23.1]} 47... Ne3 {[%clk 0:00:03.9]} 48. Rf2 {[%clk 0:01:23.1]} 48...
Qxf2 {[%clk 0:00:03.2]} 49. Nxf2 {[%clk 0:01:24]} 49... Nf5 {[%clk 0:00:02.9]}
50. Nh3 {[%clk 0:01:23.9]} 50... Ne7 {[%clk 0:00:02.9]} 51. Kc4 {[%clk
0:01:23.6]} 51... Kf7 {[%clk 0:00:03]} 52. Bg4 {[%clk 0:01:24.2]} 52... Kf6
{[%clk 0:00:03.3]} 53. Be6 {[%clk 0:01:23]} 53... Ke5 {[%clk 0:00:03.6]} 54. b3
{[%clk 0:01:23.6]} 54... Nf5 {[%clk 0:00:03.8]} 55. Bc8 {[%clk 0:01:22.8]} 55...
Ne3+ {[%clk 0:00:04.1]} 56. Kd3 {[%clk 0:01:23.5]} 56... Nxd5 {[%clk 0:00:04.4]}
57. Bxb7 {[%clk 0:01:23.5]} 57... Nb4+ {[%clk 0:00:05.3]} 58. Kc4 {[%clk
0:01:23.5]} 58... d5+ {[%clk 0:00:05.4]} 59. Bxd5 {[%clk 0:01:22.9]} 59... Nxd5
{[%clk 0:00:05.9]} 60. Ng5 {[%clk 0:01:23]} 60... Nf4 {[%clk 0:00:06.1]} 61. b4
{[%clk 0:01:22.2]} 61... cxb4 {[%clk 0:00:05.9]} 62. Nf3+ {[%clk 0:01:22.8]}
62... Ke4 {[%clk 0:00:05.7]} 63. Nxd4 {[%clk 0:01:23.7]} 63... h3 {[%clk
0:00:05.9]} 64. Nc6 {[%clk 0:01:22.9]} 64... h2 {[%clk 0:00:05.9]} 65. Nxb4
{[%clk 0:01:23.5]} 65... h1=Q {[%clk 0:00:06]} 66. Nxa6 {[%clk 0:01:24.4]} 66...
Qf1+ {[%clk 0:00:06.1]} 67. Kb4 {[%clk 0:01:23.9]} 67... Qxa6 {[%clk 0:00:06.3]}
68. Ka4 {[%clk 0:01:24.8]} 68... Nd5 {[%clk 0:00:06.2]} 69. Ka3 {[%clk
0:01:24.9]} 69... Qxa5+ {[%clk 0:00:06.3]} 70. Kb3 {[%clk 0:01:25.8]} 70... Qb4+
{[%clk 0:00:06.5]} 71. Kc2 {[%clk 0:01:26.7]} 71... Qc3+ {[%clk 0:00:06.6]} 72.
Kd1 {[%clk 0:01:27.4]} 72... Qb2 {[%clk 0:00:06.4]} 73. Ke1 {[%clk 0:01:27.7]}
73... Nf4 {[%clk 0:00:06.7]} 74. Kf1 {[%clk 0:01:28]} 74... Kf3 {[%clk
0:00:06.9]} 75. Kg1 {[%clk 0:01:28.9]} 75... Qg2# {[%clk 0:00:06.6]} 0-1